bitfinex/quotes_BTCUSD_20240821
["timestamp","ask_amount","ask_price","bid_price","bid_amount"]
[1724219693940,0.04437321,59522.0,59521.0,0.2678042]
[1724219694200,0.04437321,59522.0,59521.0,0.2738042]
[1724219694607,0.04437321,59522.0,59521.0,0.2748042]
[1724219695215,0.04437321,59522.0,59521.0,0.2738042]
[1724219695525,0.04437321,59522.0,59521.0,0.2798042]
[1724219696827,0.04237321,59522.0,59521.0,0.2798042]
[1724219697029,0.04237321,59522.0,59521.0,0.35319678]
[1724219698670,0.04337321,59522.0,59521.0,0.35319678]
[1724219698871,0.04437321,59522.0,59521.0,0.35319678]
[1724219699165,0.04437321,59522.0,59521.0,0.3028042]
[1724219700955,0.04437321,59522.0,59521.0,0.2798042]
[1724219701108,0.04437321,59522.0,59521.0,0.1302042]
[1724219701333,0.02898926,59522.0,59521.0,0.1302042]
[1724219701524,0.04437286,59522.0,59521.0,0.1302042]
[1724219704143,0.04437286,59522.0,59521.0,0.0129042]
[1724219704325,0.04437287,59522.0,59521.0,0.0129042]
[1724219710936,0.04237287,59522.0,59521.0,0.2703042]
[1724219711765,0.04437287,59522.0,59521.0,0.2703042]
[1724219711948,0.02898926,59522.0,59521.0,0.2703042]
[1724219712119,0.04437273,59522.0,59521.0,0.2703042]
[1724219712468,0.02898926,59522.0,59521.0,0.2703042]
[1724219712637,0.04437273,59522.0,59521.0,0.2703042]
[1724219712849,0.04237273,59522.0,59521.0,0.2703042]
[1724219714940,0.04337273,59522.0,59521.0,0.2703042]
[1724219715978,0.02798926,59522.0,59521.0,0.2703042]
[1724219716186,0.04337273,59522.0,59521.0,0.2703042]
[1724219716949,0.04437273,59522.0,59521.0,0.2703042]
[1724219718493,0.04437273,59522.0,59521.0,0.1530042]
[1724219718674,0.04437273,59522.0,59521.0,0.2703042]
[1724219720801,0.04437273,59522.0,59521.0,0.1302042]
[1724219724461,0.04437273,59522.0,59521.0,0.1182042]
[1724219724861,0.04437273,59522.0,59521.0,0.1252042]
[1724219725939,0.04437273,59522.0,59521.0,0.1322042]
[1724219726158,0.04437273,59522.0,59521.0,0.1252042]
[1724219726393,0.04437273,59522.0,59521.0,0.1262042]
[1724219726636,0.04437273,59522.0,59521.0,0.1342042]
[1724219729352,0.18497273,59522.0,59521.0,0.0169042]
[1724219729783,0.18497273,59522.0,59521.0,0.0009042]
[1724219730047,0.18497273,59522.0,59521.0,0.0169042]
[1724219730877,0.18497273,59522.0,59521.0,0.0089042]
[1724219731078,0.18497273,59522.0,59521.0,0.0009042]
[1724219731482,0.21206552,59522.0,59521.0,0.0009042]
[1724219731691,0.29731066,59522.0,59521.0,0.0009042]
[1724219731933,0.23837793,59522.0,59521.0,0.0009042]
[1724219732133,0.29730948,59522.0,59521.0,0.0009042]
[1724219732291,0.30151016,59522.0,59521.0,0.0129042]
[1724219732490,0.30151016,59522.0,59521.0,0.0069042]
[1724219732764,0.24257861,59522.0,59521.0,0.0009042]
[1724219733212,0.23837793,59522.0,59521.0,0.0009042]
[1724219733854,0.33158514,59522.0,59521.0,0.0019042]
[1724219734174,0.45768101,59522.0,59521.0,0.0019042]
[1724219734413,0.43158514,59522.0,59521.0,0.0019042]
[1724219734618,0.43358514,59522.0,59521.0,0.0019042]
[1724219734981,0.55859051,59522.0,59521.0,0.0019042]
[1724219735320,0.60024829,59522.0,59521.0,0.0009042]
[1724219735522,0.6156295,59522.0,59521.0,0.0009042]
[1724219735698,0.60024829,59522.0,59521.0,0.0009042]
[1724219735958,0.6156295,59522.0,59521.0,0.0009042]
[1724219736161,0.6136295,59522.0,59521.0,0.0009042]
[1724219736370,0.6156295,59522.0,59521.0,0.0009042]
[1724219736579,0.48962413,59522.0,59521.0,0.0009042]
[1724219737408,0.48762413,59522.0,59521.0,0.0009042]
[1724219738671,0.48862413,59522.0,59521.0,0.0009042]
[1724219738871,0.48762413,59522.0,59521.0,0.0009042]
[1724219739045,0.48862413,59522.0,59521.0,0.0009042]
[1724219739282,0.48962413,59522.0,59521.0,0.0009042]
[1724219739490,0.48962403,59522.0,59521.0,0.0009042]
[1724219740066,0.48762403,59522.0,59521.0,0.0009042]
[1724219741969,0.48962403,59522.0,59521.0,0.0009042]
[1724219742551,0.48762403,59522.0,59521.0,0.0009042]
[1724219747215,0.29890167,59522.0,59521.0,0.0009042]
[1724219747389,0.30210274,59522.0,59521.0,0.0009042]
[1724219748173,0.30410274,59522.0,59521.0,0.0009042]
[1724219748575,0.31948471,59522.0,59521.0,0.0009042]
[1724219748929,0.31748471,59522.0,59521.0,0.0009042]
[1724219749260,0.20529835,59522.0,59521.0,0.0643042]
[1724219749513,0.04637123,59522.0,59521.0,0.0643042]
[1724219749923,0.04637123,59522.0,59521.0,0.05908024]
[1724219752145,0.03098926,59522.0,59521.0,0.05908024]
[1724219752345,0.04637251,59522.0,59521.0,0.05908024]
[1724219753902,0.04637249,59522.0,59521.0,0.05908024]
[1724219755550,0.003,59518.0,59517.0,0.0642]
[1724219755943,0.01938323,59518.0,59517.0,0.0642]
[1724219756124,0.02358359,59518.0,59517.0,0.0642]
[1724219756303,0.004,59515.0,59514.0,0.0773]
[1724219756900,0.0457547,59515.0,59514.0,0.1439]
[1724219758534,0.0457547,59515.0,59514.0,0.1499]
[1724219759149,0.0457547,59515.0,59514.0,0.1439]
[1724219759367,0.05894031,59515.0,59514.0,0.008]
[1724219759684,0.05894031,59515.0,59514.0,0.002]
[1724219759843,0.04355746,59515.0,59514.0,0.003]
[1724219760042,0.05893996,59515.0,59514.0,0.0039042]
[1724219760257,0.04775857,59515.0,59514.0,0.0039042]
[1724219760411,0.06314106,59515.0,59514.0,0.0039042]
[1724219761212,0.12206659,59515.0,59514.0,0.0039042]
[1724219761353,0.06314106,59515.0,59514.0,0.0039042]
[1724219761567,0.06314152,59515.0,59514.0,0.0039042]
[1724219761954,0.14284152,59515.0,59514.0,0.0039042]
[1724219762367,0.16915998,59515.0,59514.0,0.0039042]
[1724219762576,0.16916006,59515.0,59514.0,0.0039042]
[1724219764142,0.16915876,59515.0,59514.0,0.0039042]
[1724219764341,0.18454049,59515.0,59514.0,0.0039042]
[1724219765307,0.16895655,59515.0,59514.0,0.0039042]
[1724219765520,0.18433828,59515.0,59514.0,0.0039042]
[1724219766342,0.18633828,59515.0,59514.0,0.0039042]
[1724219766997,0.18633858,59515.0,59514.0,0.0039042]
[1724219767514,0.18633859,59515.0,59514.0,0.0039042]
[1724219768038,0.18433859,59515.0,59514.0,0.0039042]
[1724219768993,0.16895686,59515.0,59514.0,0.0039042]
[1724219770400,0.15357482,59515.0,59514.0,0.0039042]
[1724219770618,0.16895685,59515.0,59514.0,0.0039042]
[1724219771578,0.16895699,59515.0,59514.0,0.0039042]
[1724219772728,0.16895698,59515.0,59514.0,0.0039042]
[1724219773597,0.0760713,59515.0,59514.0,0.0039042]
[1724219778674,0.06068921,59515.0,59514.0,0.0039042]
[1724219778884,0.07187041,59515.0,59514.0,0.0039042]
[1724219779230,0.0564881,59515.0,59514.0,0.0039042]
[1724219779433,0.07187032,59515.0,59514.0,0.0039042]
[1724219780698,0.0564881,59515.0,59514.0,0.0039042]
[1724219780860,0.07187027,59515.0,59514.0,0.0039042]
[1724219781447,0.07607158,59515.0,59514.0,0.0039042]
[1724219781645,0.09386476,59515.0,59514.0,0.0039042]
[1724219783089,0.17476476,59515.0,59514.0,0.0039042]
[1724219783286,0.17476469,59515.0,59514.0,0.0039042]
[1724219785996,0.1747647,59515.0,59514.0,0.0039042]
[1724219786527,0.1757647,59515.0,59514.0,0.0039042]
[1724219787763,0.1747647,59515.0,59514.0,0.0039042]
[1724219788027,0.1757647,59515.0,59514.0,0.0039042]
[1724219788178,0.1777647,59515.0,59514.0,0.0039042]
[1724219791232,0.16238259,59515.0,59514.0,0.0039042]
[1724219791411,0.17776353,59515.0,59514.0,0.0039042]
[1724219795706,0.17776334,59515.0,59514.0,0.0039042]
[1724219795882,0.00079779,59510.0,59509.0,0.14110598]
[1724219796208,0.044497,59510.0,59509.0,0.14110598]
[1724219796963,0.04449693,59510.0,59509.0,0.14110598]
[1724219797160,0.04449693,59510.0,59509.0,0.14810598]
[1724219798267,0.04449693,59510.0,59509.0,0.15510598]
[1724219799053,0.02911625,59510.0,59509.0,0.15510598]
[1724219799264,0.04449687,59510.0,59509.0,0.15510598]
[1724219802083,0.04549687,59510.0,59509.0,0.15510598]
[1724219802838,0.03011625,59510.0,59509.0,0.15510598]
[1724219803030,0.04549549,59510.0,59509.0,0.15510598]
[1724219806500,0.03011625,59510.0,59509.0,0.15510598]
[1724219807093,0.04549528,59510.0,59509.0,0.15510598]
[1724219807290,0.04549529,59510.0,59509.0,0.15510598]
[1724219809137,0.04549529,59510.0,59509.0,0.01440598]
[1724219809309,0.06729232,59510.0,59509.0,0.01440598]
[1724219810999,0.06729229,59510.0,59509.0,0.01440598]
[1724219814949,0.05191328,59510.0,59509.0,0.01440598]
[1724219815142,0.06729232,59510.0,59509.0,0.01440598]
[1724219815784,0.05191328,59510.0,59509.0,0.01440598]
[1724219815986,0.0672923,59510.0,59509.0,0.01440598]
[1724219818047,0.04549527,59510.0,59509.0,0.15770598]
[1724219819184,0.0454958,59510.0,59509.0,0.15770598]
[1724219821498,0.10441076,59510.0,59509.0,0.15770598]
[1724219821909,0.0454958,59510.0,59509.0,0.15770598]
[1724219822538,0.01917734,59510.0,59509.0,0.15770598]
[1724219822738,0.01717734,59510.0,59509.0,0.15770598]
[1724219823539,0.01717734,59510.0,59509.0,0.20121012]
[1724219823751,0.01717734,59510.0,59509.0,0.20119092]
[1724219824171,0.01717734,59510.0,59509.0,0.31849092]
[1724219824379,0.01717734,59510.0,59509.0,0.26800598]
[1724219824768,0.01717734,59510.0,59509.0,0.26100598]
[1724219824996,0.01717734,59510.0,59509.0,0.26800598]
[1724219825408,0.01718062,59510.0,59509.0,0.15770598]
[1724219825609,0.01718062,59510.0,59509.0,0.14370598]
[1724219825813,0.01718062,59510.0,59509.0,0.15370598]
[1724219826017,0.01718062,59510.0,59509.0,0.16470598]
[1724219826626,0.01718062,59510.0,59509.0,0.15470598]
[1724219826880,0.01718062,59510.0,59509.0,0.14370598]
[1724219827578,0.01918062,59510.0,59509.0,0.14370598]
[1724219827933,0.01918062,59510.0,59509.0,0.15070598]
[1724219828129,0.01918062,59510.0,59509.0,0.15770598]
[1724219828539,0.01918062,59510.0,59509.0,0.15070598]
[1724219828761,0.01918062,59510.0,59509.0,0.15770598]
[1724219829590,0.00379779,59510.0,59509.0,0.15770598]
[1724219829798,0.0233815,59510.0,59509.0,0.15770598]
[1724219830887,0.01918032,59510.0,59509.0,0.15770598]
[1724219832312,0.02000232,59510.0,59509.0,0.15770598]
[1724219832533,0.00461979,59510.0,59509.0,0.15770598]
[1724219832746,0.02000233,59510.0,59509.0,0.15770598]
[1724219833147,0.02000231,59510.0,59509.0,0.15770598]
[1724219834573,0.02000231,59510.0,59509.0,0.27500598]
[1724219834574,0.01620452,59510.0,59509.0,0.27500598]
[1724219834779,0.01720452,59510.0,59509.0,0.27500598]
[1724219835535,0.01720452,59510.0,59509.0,0.26100598]
[1724219835743,0.01720452,59510.0,59509.0,0.26800598]
[1724219835968,0.01720452,59510.0,59509.0,0.27500598]
[1724219836171,0.01800231,59510.0,59509.0,0.26800598]
[1724219836398,0.01800231,59510.0,59509.0,0.27600598]
[1724219837349,0.01800231,59510.0,59509.0,0.15870598]
[1724219837554,0.02000231,59510.0,59509.0,0.15070598]
[1724219837779,0.02000231,59510.0,59509.0,0.14370598]
[1724219837984,0.02000231,59510.0,59509.0,0.15570598]
[1724219838195,0.02000231,59510.0,59509.0,0.14370598]
[1724219838604,0.02000231,59510.0,59509.0,0.15970598]
[1724219838834,0.02000231,59510.0,59509.0,0.15170598]
[1724219839056,0.02000231,59510.0,59509.0,0.15070598]
[1724219839490,0.02000231,59510.0,59509.0,0.14370598]
[1724219840698,0.02000215,59510.0,59509.0,0.14370598]
[1724219840981,0.02000215,59510.0,59509.0,0.15170598]
[1724219841119,0.02000215,59510.0,59509.0,0.15870598]
[1724219841882,0.02000215,59510.0,59509.0,0.14640173]
[1724219842234,0.02000215,59510.0,59509.0,0.15440173]
[1724219844701,0.02000287,59510.0,59509.0,0.15440173]
[1724219845872,0.02000287,59510.0,59509.0,0.15530593]
[1724219848797,0.01980062,59510.0,59509.0,0.15530593]
[1724219852752,0.00441754,59510.0,59509.0,0.15530593]
[1724219852943,0.0198008,59510.0,59509.0,0.15530593]
[1724219856342,0.01980079,59510.0,59509.0,0.15530593]
[1724219860296,0.01980088,59510.0,59509.0,0.15530593]
[1724219864263,0.00441754,59510.0,59509.0,0.15530593]
[1724219864424,0.01980092,59510.0,59509.0,0.15530593]
[1724219864830,0.01980092,59510.0,59509.0,0.0169042]
[1724219864831,0.01980085,59510.0,59509.0,0.0169042]
[1724219865210,0.03566392,59510.0,59509.0,0.0169042]
[1724219865408,0.12511199,59510.0,59509.0,0.0169042]
[1724219865631,0.06618326,59510.0,59509.0,0.0169042]
[1724219867843,0.10504562,59510.0,59509.0,0.1586042]
[1724219868052,0.10304562,59510.0,59509.0,0.1586042]
[1724219868266,0.01780085,59510.0,59509.0,0.1586042]
[1724219868679,0.01980085,59510.0,59509.0,0.1586042]
[1724219868861,0.01980106,59510.0,59509.0,0.1586042]
[1724219872252,0.01980106,59510.0,59509.0,0.15330006]
[1724219876197,0.01980104,59510.0,59509.0,0.15330006]
[1724219876596,0.00441754,59510.0,59509.0,0.15330006]
[1724219876799,0.01980103,59510.0,59509.0,0.15330006]
[1724219878019,0.03594408,59510.0,59509.0,0.01160006]
[1724219878355,0.03594387,59510.0,59509.0,0.01160006]
[1724219878987,0.2051618,59510.0,59509.0,0.01160006]
[1724219879415,0.30609822,59510.0,59509.0,0.01160006]
[1724219879828,0.30609822,59510.0,59509.0,0.00360006]
[1724219880033,0.18977852,59510.0,59509.0,0.00360006]
[1724219880239,0.2051597,59510.0,59509.0,0.00360006]
[1724219881075,0.2051597,59510.0,59509.0,0.0009042]
[1724219881248,0.2091597,59510.0,59509.0,0.0019042]
[1724219881708,0.2051597,59510.0,59509.0,0.0009042]
[1724219882530,0.2151597,59510.0,59509.0,0.0029042]
[1724219882740,0.21516004,59510.0,59509.0,0.0029042]
[1724219883128,0.21016004,59510.0,59509.0,0.0019042]
[1724219883684,0.21516004,59510.0,59509.0,0.0029042]
[1724219884079,0.19977852,59510.0,59509.0,0.0029042]
[1724219884207,0.21516004,59510.0,59509.0,0.0029042]
[1724219885032,0.21016004,59510.0,59509.0,0.0019042]
[1724219885232,0.20516004,59510.0,59509.0,0.0009042]
[1724219885458,0.21616004,59510.0,59509.0,0.0029042]
[1724219885888,0.20001699,59510.0,59509.0,0.0029042]
[1724219887003,0.05011699,59510.0,59509.0,0.0019042]
[1724219887222,0.05011699,59510.0,59509.0,0.0009042]
[1724219887415,0.04611794,59510.0,59509.0,0.0009042]
[1724219887618,0.05011794,59510.0,59509.0,0.0019042]
[1724219888228,0.08672684,59510.0,59509.0,0.1471042]
[1724219888444,0.02380001,59510.0,59509.0,0.1461042]
[1724219888637,0.02380001,59510.0,59509.0,0.1471042]
[1724219888844,0.02380001,59510.0,59509.0,0.1461042]
[1724219889067,0.02380001,59510.0,59509.0,0.1451042]
[1724219889266,0.02380001,59510.0,59509.0,0.1461042]
[1724219889267,0.02780001,59510.0,59509.0,0.1461042]
[1724219889752,0.03180001,59510.0,59509.0,0.1471042]
[1724219890115,0.03180001,59510.0,59509.0,0.1461042]
[1724219890116,0.02780001,59510.0,59509.0,0.1461042]
[1724219890644,0.01980001,59510.0,59509.0,0.1451042]
[1724219890869,0.02380001,59510.0,59509.0,0.2624042]
[1724219891069,0.00841754,59510.0,59509.0,0.2624042]
[1724219891198,0.02380524,59510.0,59509.0,0.2624042]
[1724219891798,0.02580524,59510.0,59509.0,0.2624042]
[1724219892200,0.01980524,59510.0,59509.0,0.2624042]
[1724219892424,0.01980524,59510.0,59509.0,0.2634042]
[1724219892625,0.01980524,59510.0,59509.0,0.2654042]
[1724219894908,0.01600745,59510.0,59509.0,0.2654042]
[1724219895769,0.01600745,59510.0,59509.0,0.2634042]
[1724219896194,0.01600745,59510.0,59509.0,0.2704042]
[1724219896620,0.00061975,59510.0,59509.0,0.2704042]
[1724219896938,0.00061975,59510.0,59509.0,0.31983968]
[1724219897138,0.00061975,59510.0,59509.0,0.32683968]
[1724219898370,0.00061975,59510.0,59509.0,0.2764042]
[1724219899383,0.00061975,59510.0,59509.0,0.38637152]
[1724219899585,0.00061975,59510.0,59509.0,0.9097732]
[1724219900537,0.00061975,59510.0,59509.0,0.9027732]
[1724219900941,0.00061975,59510.0,59509.0,0.9167732]
[1724219901118,0.00061975,59510.0,59509.0,0.8957732]
[1724219901316,0.00061975,59510.0,59509.0,0.79490224]
[1724219901528,0.00061975,59510.0,59509.0,0.82290224]
[1724219901696,0.00061975,59510.0,59509.0,0.80890224]
[1724219901901,0.00061975,59510.0,59509.0,0.79490224]
[1724219902245,0.00061975,59510.0,59509.0,0.80890224]
[1724219902376,0.00061975,59510.0,59509.0,0.88440489]
[1724219903144,0.00061975,59510.0,59509.0,0.89840489]
[1724219903484,0.00061975,59510.0,59509.0,0.52543869]
[1724219904308,0.00061975,59510.0,59509.0,0.44993604]
[1724219904671,0.00061975,59510.0,59509.0,0.89839054]
[1724219905319,0.00061975,59510.0,59509.0,0.51143869]
[1724219905718,0.00061975,59510.0,59509.0,0.89839032]
[1724219906130,0.00061975,59510.0,59509.0,0.88439032]
[1724219906328,0.00061975,59510.0,59509.0,0.43593604]
[1724219906939,0.00061975,59510.0,59509.0,0.42313825]
[1724219907346,0.00061975,59510.0,59509.0,0.43713825]
[1724219907555,0.00061975,59510.0,59509.0,0.48742864]
[1724219908395,0.00061975,59510.0,59509.0,0.50142864]
[1724219911307,0.00061975,59510.0,59509.0,0.45113825]
[1724219912443,0.00061975,59510.0,59509.0,0.50139759]
[1724219913246,0.00061975,59510.0,59509.0,0.50019538]
[1724219914056,0.00061975,59510.0,59509.0,0.50139759]
[1724219916736,0.00061975,59510.0,59509.0,0.50019538]
[1724219917368,0.00061975,59510.0,59509.0,0.5001809]
[1724219917593,0.00061975,59510.0,59509.0,0.44993604]
[1724219918326,0.00061975,59510.0,59509.0,0.45113825]
[1724219918761,1e-08,59510.0,59509.0,0.92453542]
[1724219918983,1e-08,59510.0,59509.0,0.94965785]
[1724219920337,1e-08,59510.0,59509.0,0.98670169]
[1724219920563,1e-08,59510.0,59509.0,0.94965785]
[1724219921143,1e-08,59510.0,59509.0,0.98669755]
[1724219921343,1e-08,59510.0,59509.0,0.82404569]
[1724219921577,1e-08,59510.0,59509.0,0.86108539]
[1724219921932,1e-08,59510.0,59509.0,0.96151911]
[1724219924219,1e-08,59510.0,59509.0,0.98868493]
[1724219925202,1e-08,59510.0,59509.0,0.98868501]
[1724219925625,1e-08,59510.0,59509.0,0.95164523]
[1724219925851,1e-08,59510.0,59509.0,0.98868501]
[1724219928389,1e-08,59510.0,59509.0,0.88826904]
[1724219928587,1e-08,59510.0,59509.0,1.013789]
[1724219928938,1e-08,59510.0,59509.0,0.88826138]
[1724219929146,1e-08,59510.0,59509.0,1.01381646]
[1724219929349,1e-08,59510.0,59509.0,0.88826138]
[1724219929745,1e-08,59510.0,59509.0,0.8882608]
[1724219932855,1e-08,59510.0,59509.0,0.8742608]
[1724219933053,0.02699161,59515.0,59514.0,0.43490221]
[1724219933311,0.02699161,59515.0,59514.0,1.33044207]
[1724219933511,0.02699161,59515.0,59514.0,1.22993076]
[1724219933731,1e-08,59515.0,59514.0,1.22993076]
[1724219933967,0.02636726,59515.0,59514.0,1.22993076]
[1724219934397,0.02636726,59515.0,59514.0,1.19289156]
[1724219934609,0.02636726,59515.0,59514.0,1.22993017]
[1724219934816,0.02636726,59515.0,59514.0,1.24393017]
[1724219935021,0.02636726,59515.0,59514.0,1.36956931]
[1724219935450,0.02636726,59515.0,59514.0,1.24393017]
[1724219935682,0.02636726,59515.0,59514.0,1.25793017]
[1724219936174,0.02636726,59515.0,59514.0,1.22993017]
[1724219936395,0.02636726,59515.0,59514.0,1.25793017]
[1724219937841,0.02636726,59515.0,59514.0,1.26802327]
[1724219939000,0.02636726,59515.0,59514.0,1.23098466]
[1724219939217,0.02636726,59515.0,59514.0,1.41868687]
[1724219939447,0.02636726,59515.0,59514.0,1.38164961]
[1724219939678,0.02636726,59515.0,59514.0,1.41868687]
[1724219940747,0.02636726,59515.0,59514.0,1.26799009]
[1724219941012,0.02636726,59515.0,59514.0,1.23095283]
[1724219941194,0.02636726,59515.0,59514.0,1.78998926]
[1724219941830,0.02636726,59515.0,59514.0,1.26798873]
[1724219942035,0.02636726,59515.0,59514.0,1.78998926]
[1724219942518,0.02636726,59515.0,59514.0,1.78998879]
[1724219943120,0.02636726,59515.0,59514.0,1.26798826]
[1724219943326,0.02636726,59515.0,59514.0,1.78998879]
[1724219944726,0.02636726,59515.0,59514.0,1.78997754]
[1724219945638,0.02636726,59515.0,59514.0,2.12857754]
[1724219945860,0.000822,59521.0,59520.0,0.57550221]
[1724219946096,0.000822,59521.0,59520.0,1.22569047]
[1724219946299,0.000822,59521.0,59520.0,1.37669944]
[1724219946505,0.000822,59521.0,59520.0,1.22569047]
[1724219946923,0.000822,59521.0,59520.0,1.23969047]
[1724219947149,0.000822,59521.0,59520.0,1.25369047]
[1724219948772,1e-08,59522.0,59521.0,0.00120221]
[1724219948968,1e-08,59522.0,59521.0,0.57061809]
[1724219949488,0.02636282,59522.0,59521.0,0.57061809]
[1724219950278,0.02636282,59522.0,59521.0,0.58461809]
[1724219950943,0.02636282,59522.0,59521.0,0.59861809]
[1724219952650,0.02636282,59522.0,59521.0,0.59861692]
[1724219954232,0.02636282,59522.0,59521.0,0.74957263]
[1724219954944,0.02636282,59522.0,59521.0,0.89037263]
[1724219955490,0.02636282,59522.0,59521.0,0.73939427]
[1724219956058,0.02636282,59522.0,59521.0,0.80673627]
[1724219956719,0.02636282,59522.0,59521.0,1.32869852]
[1724219956928,0.02636282,59522.0,59521.0,1.32586907]
[1724219957132,0.02636282,59522.0,59521.0,0.80390682]
[1724219957360,0.02636282,59522.0,59521.0,1.32586907]
[1724219957939,0.17156282,59522.0,59521.0,0.53890461]
[1724219958121,0.17156282,59522.0,59521.0,0.50187218]
[1724219958322,0.17156282,59522.0,59521.0,0.129042]
[1724219958567,0.17156282,59522.0,59521.0,0.0617]
[1724219958827,0.17156282,59522.0,59521.0,0.17943234]
[1724219959003,0.17156282,59522.0,59521.0,0.11207634]
[1724219959757,0.17156282,59522.0,59521.0,0.13507634]
[1724219963321,0.17156282,59522.0,59521.0,0.13509538]
[1724219963942,0.17256282,59522.0,59521.0,0.13509538]
[1724219964541,0.17336061,59522.0,59521.0,0.13509538]
[1724219965339,0.17156282,59522.0,59521.0,0.13509538]
[1724219966726,0.17156282,59522.0,59521.0,0.13599848]
[1724219969458,0.02636282,59522.0,59521.0,0.13599848]
[1724219969674,0.02636282,59522.0,59521.0,0.13882755]
[1724219971880,0.02636282,59522.0,59521.0,0.13358147]
[1724219973160,0.02636282,59522.0,59521.0,0.13358159]
[1724219974618,0.02636282,59522.0,59521.0,0.15877934]
[1724219974861,0.02636282,59522.0,59521.0,0.53167842]
[1724219975095,0.02636282,59522.0,59521.0,0.45608517]
[1724219976354,0.02636282,59522.0,59521.0,0.5288479]
[1724219981221,0.02636282,59522.0,59521.0,0.15594882]
[1724219981636,0.02636282,59522.0,59521.0,0.08035702]
[1724219981907,0.16746282,59522.0,59521.0,0.06763073]
[1724219982120,0.16926061,59522.0,59521.0,0.11802373]
[1724219982331,0.16746282,59522.0,59521.0,0.11802373]
[1724219982540,0.16746282,59522.0,59521.0,0.11802276]
[1724219984312,0.16846282,59522.0,59521.0,0.18493073]
[1724219984544,0.18384307,59522.0,59521.0,0.18493073]
[1724219985586,0.18464086,59522.0,59521.0,0.18493073]
[1724219986440,0.18464086,59522.0,59521.0,0.06763073]
[1724219986661,0.18464086,59522.0,59521.0,0.18493073]
[1724219987161,0.18284307,59522.0,59521.0,0.18493073]
[1724219987870,0.1828429,59522.0,59521.0,0.18493073]
[1724219990506,0.1815929,59522.0,59521.0,0.18493073]
[1724219990711,0.16621282,59522.0,59521.0,0.18493073]
[1724219990973,0.16703382,59522.0,59521.0,0.18493073]
[1724219992053,0.18241197,59522.0,59521.0,0.18493073]
[1724219992291,0.16703382,59522.0,59521.0,0.18493073]
[1724219993807,0.18241155,59522.0,59521.0,0.18493073]
[1724219996409,0.16703382,59522.0,59521.0,0.18493073]
[1724219996628,0.18241244,59522.0,59521.0,0.18493073]
[1724219997255,0.18241244,59522.0,59521.0,0.23532012]
[1724219997746,0.18421023,59522.0,59521.0,0.23532012]
[1724219998815,0.18421023,59522.0,59521.0,0.22577474]
[1724219999852,0.18241244,59522.0,59521.0,0.22577474]
[1724220000079,0.18241267,59522.0,59521.0,0.22577474]
[1724220000293,0.18241267,59522.0,59521.0,0.17538535]
[1724220000503,0.18341267,59522.0,59521.0,0.17538535]
[1724220000712,0.18241267,59522.0,59521.0,0.17538535]
[1724220000923,0.18341267,59522.0,59521.0,0.15238535]
[1724220001137,0.18241267,59522.0,59521.0,0.15238535]
[1724220001595,0.18341267,59522.0,59521.0,0.15238535]
[1724220001816,0.18341267,59522.0,59521.0,0.03508535]
[1724220001817,0.18621046,59522.0,59521.0,0.03508535]
[1724220002030,0.17980089,59522.0,59521.0,0.03508535]
[1724220002442,0.26923003,59522.0,59521.0,0.0009031]
[1724220002900,0.26923003,59522.0,59521.0,0.0159031]
[1724220002901,0.27023003,59522.0,59521.0,0.0159031]
[1724220003127,0.24732641,59522.0,59521.0,0.0079031]
[1724220003339,0.16209764,59522.0,59521.0,0.1252031]
[1724220003545,0.16109764,59522.0,59521.0,0.1539031]
[1724220003789,0.16109764,59522.0,59521.0,0.1559031]
[1724220004232,0.16109764,59522.0,59521.0,0.1539031]
[1724220004652,0.01619985,59522.0,59521.0,0.1539031]
[1724220005100,0.01619985,59522.0,59521.0,0.29004077]
[1724220005315,0.01619985,59522.0,59521.0,0.2376031]
[1724220005527,0.01719985,59522.0,59521.0,0.32125961]
[1724220005944,0.01719985,59522.0,59521.0,0.31925961]
[1724220006399,0.01719985,59522.0,59521.0,0.69499825]
[1724220006600,0.000821,59522.0,59521.0,0.69304174]
[1724220006827,0.001821,59522.0,59521.0,0.80391709]
[1724220007033,0.001821,59522.0,59521.0,0.70704174]
[1724220007246,0.001821,59522.0,59521.0,0.83313592]
[1724220007456,0.002821,59522.0,59521.0,0.84613592]
[1724220008571,0.001821,59522.0,59521.0,0.70724395]
[1724220008785,0.001821,59522.0,59521.0,1.33024467]
[1724220008967,0.00100001,59522.0,59521.0,1.34424467]
[1724220009223,0.001,59522.0,59521.0,1.31624467]
[1724220009436,0.000822,59526.0,59525.0,0.4605]
[1724220009650,0.000822,59526.0,59525.0,1.85818602]
[1724220009859,0.000822,59526.0,59525.0,1.74402661]
[1724220010260,0.000822,59526.0,59525.0,1.70578518]
[1724220011161,0.000822,59526.0,59525.0,1.85692454]
[1724220011810,0.001822,59526.0,59525.0,1.71978518]
[1724220012024,0.000822,59526.0,59525.0,1.70698739]
[1724220012239,0.000822,59531.0,59529.0,0.0337]
[1724220012446,0.000822,59531.0,59530.0,0.68810372]
[1724220012664,0.000822,59531.0,59530.0,0.7932535]
[1724220013609,0.001822,59531.0,59530.0,0.8072535]
[1724220014035,0.001822,59531.0,59530.0,0.80722833]
[1724220014232,0.00029618,59534.0,59533.0,0.00120221]
[1724220014507,0.00822,59542.0,59539.0,0.5753]
[1724220014725,0.00822,59542.0,59540.0,0.1416]
[1724220014929,0.00179779,59554.0,59545.0,0.0337]
[1724220015162,0.49229154,59555.0,59545.0,0.251]
[1724220015163,0.1423,59550.0,59545.0,0.251]
[1724220015379,0.1413,59550.0,59545.0,0.274]
[1724220015845,0.00179779,59547.0,59545.0,0.274]
[1724220016470,0.01000779,59546.0,59545.0,0.251]
[1724220016712,0.08611,59546.0,59545.0,0.251]
[1724220016929,0.08611,59546.0,59545.0,0.2173]
[1724220018254,0.00821,59546.0,59545.0,0.30973]
[1724220018454,0.00821,59546.0,59545.0,0.29573]
[1724220018672,0.00821,59546.0,59545.0,0.295]
[1724220019089,0.00821,59546.0,59545.0,0.274]
[1724220019324,0.00821,59546.0,59545.0,0.288]
[1724220019552,0.00821,59546.0,59545.0,0.281]
[1724220019994,0.00821,59546.0,59545.0,0.295]
[1724220020918,0.00821,59546.0,59545.0,0.288]
[1724220021139,0.00821,59546.0,59545.0,0.302]
[1724220022655,0.08661,59546.0,59545.0,0.279]
[1724220027039,0.00821,59546.0,59545.0,0.4204]
[1724220027258,0.00821,59546.0,59545.0,0.4434]
[1724220027480,0.00821,59546.0,59545.0,0.302]
[1724220028129,0.00821,59546.0,59545.0,0.279]
[1724220028425,0.07620779,59546.0,59545.0,0.279]
[1724220028638,0.07441,59546.0,59545.0,0.279]
[1724220029082,0.07820779,59546.0,59545.0,0.028]
[1724220029334,0.17308503,59546.0,59545.0,0.028]
[1724220029564,0.20220573,59546.0,59545.0,0.028]
[1724220030021,0.20220666,59546.0,59545.0,0.028]
[1724220030458,0.20740525,59546.0,59545.0,0.028]
[1724220030674,0.20640525,59546.0,59545.0,0.014]
[1724220030913,0.32370525,59546.0,59545.0,0.014]
[1724220031371,0.32370525,59546.0,59545.0,0.017]
[1724220031821,0.20640525,59546.0,59545.0,0.003]